bitfinex/quotes_BTCUSD_20220109
["timestamp","ask_amount","ask_price","bid_price","bid_amount"]
[1641772017992,0.92350612,41906.0,41905.0,0.06697517]
[1641772018187,2.69968438,41906.0,41905.0,0.06697517]
[1641772018690,2.11168438,41906.0,41905.0,0.06697517]
[1641772018886,2.15948438,41906.0,41905.0,0.06697517]
[1641772019626,2.59263334,41906.0,41905.0,0.06697517]
[1641772019828,2.48063334,41906.0,41905.0,0.06697517]
[1641772020028,2.48063334,41906.0,41905.0,0.01697517]
[1641772020230,0.50797826,41906.0,41905.0,0.01697517]
[1641772020536,1.78397826,41906.0,41905.0,0.01697517]
[1641772021629,0.84613218,41906.0,41905.0,0.01697517]
[1641772021829,0.01357315,41901.0,41898.0,1.3496807]
[1641772022029,0.0478,41902.0,41898.0,0.4014807]
[1641772022230,0.107478,41902.0,41898.0,0.4014807]
[1641772022630,0.116478,41902.0,41898.0,0.4014807]
[1641772023898,0.107478,41902.0,41898.0,0.4014807]
[1641772024099,0.107478,41902.0,41897.0,0.4014807]
[1641772024497,0.117478,41902.0,41897.0,0.4014807]
[1641772025798,0.107478,41902.0,41897.0,0.4014807]
[1641772026000,0.167161,41902.0,41897.0,0.40167346]
[1641772026201,0.11936915,41900.0,41897.0,0.40167346]
[1641772026643,0.21936915,41900.0,41897.0,0.40167346]
[1641772026843,1.48536915,41900.0,41897.0,0.40167346]
[1641772027040,1.48536915,41900.0,41896.0,0.00019277]
[1641772027239,0.1193771,41899.0,41896.0,0.00019277]
[1641772027440,0.219371,41900.0,41896.0,0.00019277]
[1641772027441,0.1,41900.0,41896.0,0.00019277]
[1641772027639,0.05,41898.0,41896.0,0.00019277]
[1641772027840,0.1,41900.0,41896.0,0.00019277]
[1641772028041,0.05,41900.0,41896.0,0.00038554]
[1641772028245,0.05,41900.0,41893.0,0.4014807]
[1641772028441,0.059684,41898.0,41893.0,0.4014807]
[1641772028843,0.059684,41898.0,41894.0,0.4014807]
[1641772028844,0.11936797,41898.0,41894.0,0.4014807]
[1641772029043,0.21936797,41898.0,41894.0,0.4014807]
[1641772029242,0.21936797,41898.0,41895.0,0.3351021]
[1641772029441,0.16936797,41898.0,41893.0,0.23798438]
[1641772029841,0.109684,41898.0,41893.0,0.23798438]
[1641772030042,0.109684,41898.0,41893.0,0.63946508]
[1641772030280,0.109684,41898.0,41893.0,0.63465741]
[1641772030481,0.05968,41901.0,41893.0,0.63465741]
[1641772030680,0.008,41898.0,41893.0,0.63465741]
[1641772031281,0.008,41898.0,41894.0,0.27468065]
[1641772031480,0.00378964,41898.0,41895.0,0.4014807]
[1641772031880,0.11957348,41902.0,41895.0,0.4014807]
[1641772032481,0.11957349,41902.0,41895.0,0.4014807]
[1641772032683,0.18057349,41902.0,41895.0,0.4014807]
[1641772033581,0.13057349,41902.0,41895.0,0.4014807]
[1641772034041,0.059682,41900.0,41895.0,0.4014807]
[1641772034241,0.05968265,41899.0,41895.0,0.4014807]
[1641772035042,0.075682,41900.0,41895.0,0.33671604]
[1641772035644,0.016,41900.0,41895.0,0.33671604]
[1641772035844,0.0002067,41902.0,41895.0,0.33671604]
[1641772036443,0.0598861,41902.0,41895.0,0.33671604]
[1641772036643,0.1325681,41902.0,41895.0,0.33671604]
[1641772037044,0.059681,41900.0,41894.0,0.70025259]
[1641772037445,0.05968459,41899.0,41894.0,0.29877189]
[1641772037879,0.05968459,41899.0,41894.0,0.5926969]
[1641772038081,0.05968459,41899.0,41894.0,0.59269691]
[1641772038684,0.004,41899.0,41894.0,0.61669691]
[1641772039079,0.004,41899.0,41894.0,0.61669717]
[1641772039481,0.004,41899.0,41895.0,0.4014807]
[1641772039882,0.05988598,41902.0,41895.0,0.4014807]
[1641772040283,0.06009297,41902.0,41895.0,0.4014807]
[1641772040485,0.05988599,41902.0,41895.0,0.4014807]
[1641772040682,0.12688599,41902.0,41895.0,0.4014807]
[1641772040887,0.18656533,41902.0,41895.0,0.4014807]
[1641772041546,0.18656533,41902.0,41896.0,0.4014807]
[1641772041741,0.16956533,41902.0,41896.0,0.4014807]
[1641772042341,0.059682,41900.0,41896.0,0.4014807]
[1641772043143,0.05968287,41899.0,41896.0,0.4014807]
[1641772043345,0.059686,41898.0,41896.0,0.4014807]
[1641772044547,0.05968,41901.0,41895.0,0.4014807]
[1641772044745,0.018,41898.0,41895.0,0.4014807]
[1641772045045,0.018,41898.0,41897.0,0.4014807]
[1641772045682,0.018,41898.0,41895.0,0.5605968]
[1641772045887,0.018,41898.0,41896.0,0.5009178]
[1641772046486,0.00020582,41902.0,41897.0,0.40035444]
[1641772046681,0.015,41898.0,41897.0,0.40035444]
[1641772047082,0.015,41898.0,41895.0,0.5605968]
[1641772047381,0.015,41898.0,41897.0,0.5009178]
[1641772047781,2.45466694,41899.0,41897.0,0.5009178]
[1641772047982,2.45466694,41899.0,41895.0,0.5605968]
[1641772048183,0.00020704,41902.0,41896.0,0.34997441]
[1641772048382,0.00020704,41902.0,41897.0,0.39432801]
[1641772048584,0.004,41899.0,41897.0,0.059673]
[1641772049235,0.004,41899.0,41897.0,0.5605908]
[1641772050036,0.00020704,41902.0,41897.0,0.5605908]
[1641772050436,0.00020704,41902.0,41898.0,0.5009178]
[1641772050636,0.01020704,41902.0,41898.0,0.5009178]
[1641772051038,0.06988604,41902.0,41897.0,0.5109178]
[1641772051237,0.37844466,41902.0,41897.0,0.5109178]
[1641772051437,0.3784446,41902.0,41897.0,0.5109178]
[1641772051641,0.4284446,41902.0,41897.0,0.01]
[1641772051837,0.3587656,41902.0,41895.0,0.5009178]
[1641772052238,0.3587656,41902.0,41894.0,0.59269714]
[1641772052438,0.00020698,41902.0,41894.0,0.59269714]
[1641772052641,0.00520698,41902.0,41895.0,0.015]
[1641772053282,0.00520698,41902.0,41896.0,0.059678]
[1641772053880,0.00020698,41902.0,41896.0,0.059678]
[1641772054082,0.059681,41900.0,41896.0,0.059678]
[1641772054680,0.084681,41900.0,41896.0,0.063678]
[1641772055781,0.084681,41900.0,41896.0,0.004]
[1641772055982,0.084681,41900.0,41895.0,0.059682]
[1641772055983,0.69499586,41900.0,41895.0,0.059682]
[1641772056183,1.56572467,41899.0,41894.0,0.0001855]
[1641772056382,0.11938138,41897.0,41894.0,0.0001855]
[1641772056642,1.48318138,41897.0,41894.0,0.0001855]
[1641772056842,1.43318138,41897.0,41894.0,0.000371]
[1641772057047,1.48318138,41897.0,41894.0,0.32045829]
[1641772057641,1.54287238,41897.0,41894.0,0.32045829]
[1641772058044,1.54287238,41897.0,41894.0,0.32027279]
[1641772058442,0.17907238,41897.0,41894.0,0.32027279]
[1641772058644,0.14138138,41897.0,41894.0,0.32027279]
[1641772058843,0.28856607,41894.0,41893.0,0.0001855]
[1641772059043,0.28856607,41894.0,41893.0,0.000371]
[1641772059044,1.70236607,41894.0,41893.0,0.000371]
[1641772059244,2.06131507,41894.0,41893.0,0.0001855]
[1641772059442,2.38502783,41894.0,41893.0,0.0001855]
[1641772059843,3.02406501,41894.0,41893.0,0.0001855]
[1641772060287,1.266,41893.0,41891.0,0.00418552]
[1641772060485,0.456749,41892.0,41891.0,0.00418552]
[1641772060686,0.0478,41892.0,41891.0,0.00418552]
[1641772061287,0.0478,41892.0,41891.0,0.004]
[1641772061491,0.35255261,41892.0,41891.0,0.004]
[1641772061686,0.71150161,41892.0,41891.0,0.004]
[1641772061886,0.76150161,41892.0,41891.0,0.004]
[1641772062785,0.77250161,41892.0,41891.0,0.004]
[1641772063187,0.77250161,41892.0,41887.0,0.40043194]
[1641772063188,0.41355261,41892.0,41887.0,0.40043194]
[1641772063387,0.059694,41890.0,41887.0,0.40043194]
[1641772063587,0.059694,41890.0,41889.0,0.00018553]
[1641772063588,0.11939043,41890.0,41889.0,0.00018553]
[1641772064630,0.13239043,41890.0,41887.0,0.40052994]
[1641772064831,0.013,41890.0,41887.0,0.46021994]
[1641772065034,0.013,41890.0,41888.0,0.30448259]
[1641772065231,0.013,41890.0,41888.0,0.05245659]
[1641772065431,0.013,41890.0,41888.0,0.31532324]
[1641772066732,0.027,41890.0,41888.0,0.31532324]
[1641772067132,0.027,41890.0,41888.0,0.05245659]
[1641772067540,2.3573589,41889.0,41887.0,0.40061357]
[1641772068178,2.3573589,41889.0,41887.0,0.46030557]
[1641772068377,1.07352547,41889.0,41887.0,0.46030557]
[1641772068778,1.09152547,41889.0,41887.0,0.46030557]
[1641772068979,0.018,41889.0,41887.0,0.46012394]
[1641772069379,0.018,41889.0,41887.0,0.059692]
[1641772069779,0.018,41889.0,41888.0,1.39998756]
[1641772069980,0.28856607,41894.0,41888.0,1.39998756]
[1641772070186,0.28856607,41894.0,41893.0,0.26650698]
[1641772070779,0.32156607,41894.0,41893.0,0.59000551]
[1641772072035,0.28856607,41894.0,41893.0,0.58900551]
[1641772072834,0.32056607,41894.0,41893.0,0.59000551]
[1641772073632,0.32056607,41894.0,41893.0,0.32349853]
[1641772073831,0.32056607,41894.0,41893.0,0.001]
[1641772074032,0.28856607,41894.0,41892.0,0.059681]
[1641772074833,0.31956607,41894.0,41892.0,0.40743395]
[1641772075891,0.31956607,41894.0,41892.0,0.40443395]
[1641772076096,0.28856607,41894.0,41893.0,1.385273]
[1641772076292,0.15216607,41894.0,41893.0,1.45937459]
[1641772076491,0.15216607,41894.0,41893.0,1.56063509]
[1641772076693,0.15216607,41894.0,41893.0,1.57863509]
[1641772076895,6.676e-05,41899.0,41894.0,1.0]
[1641772077092,6.676e-05,41899.0,41895.0,0.444937]
[1641772077693,6.676e-05,41899.0,41896.0,0.39975527]
[1641772077893,6.676e-05,41899.0,41898.0,1.29583569]
[1641772078096,6.676e-05,41899.0,41898.0,1.68110869]
[1641772078292,0.45620526,41909.0,41907.0,0.27663919]
[1641772078493,0.358949,41908.0,41907.0,0.27663919]
[1641772078692,0.358889,41908.0,41907.0,0.27663919]
[1641772079844,0.40627737,41910.0,41907.0,0.27663919]
[1641772080145,0.358885,41909.0,41907.0,0.27663919]
[1641772080745,0.421885,41909.0,41907.0,0.27663919]
[1641772081945,0.358885,41909.0,41907.0,0.27663919]
[1641772082345,0.358885,41909.0,41906.0,0.059664]
[1641772082792,0.358885,41909.0,41894.0,2.72790682]
[1641772082793,0.01769057,41904.0,41894.0,2.72790682]
[1641772082991,0.06549057,41904.0,41896.0,0.86854527]
[1641772083395,0.00020696,41903.0,41897.0,0.05968]
[1641772083597,0.0478,41902.0,41896.0,0.97528947]
[1641772083791,0.0478,41902.0,41896.0,0.5755342]
[1641772084390,0.059681,41901.0,41896.0,0.5755342]
[1641772084690,0.05988797,41901.0,41896.0,0.6285342]
[1641772084890,0.05988797,41901.0,41896.0,0.3387342]
[1641772085895,0.05988797,41901.0,41896.0,0.3984152]
[1641772086093,0.05988797,41901.0,41896.0,0.3454152]
[1641772086738,0.06288797,41901.0,41896.0,0.3724152]
[1641772087341,0.06288797,41901.0,41896.0,0.6401854]
[1641772087740,0.06288798,41901.0,41896.0,0.6401854]
[1641772088139,0.05988798,41901.0,41896.0,0.6131854]
[1641772088341,0.05988798,41901.0,41896.0,0.3454152]
[1641772088740,0.06288798,41901.0,41896.0,0.3674152]
[1641772089143,0.0478,41903.0,41897.0,0.85]
[1641772089341,0.0478,41903.0,41899.0,0.059678]
[1641772089742,0.059681,41901.0,41899.0,0.059678]
[1641772090785,0.075681,41901.0,41900.0,0.26932086]
[1641772091785,0.065681,41901.0,41900.0,0.26932086]
[1641772091986,0.107476,41903.0,41900.0,0.26932086]
[1641772092190,0.4657423,41908.0,41900.0,0.26932086]
[1641772092191,0.4060663,41908.0,41900.0,0.26932086]
[1641772092387,0.00021454,41903.0,41900.0,0.26932086]
[1641772092587,0.00021454,41903.0,41902.0,0.00129814]
[1641772093087,0.00021454,41903.0,41902.0,0.58511688]
[1641772093488,0.0002108,41905.0,41903.0,0.059666]
[1641772094344,0.0002108,41905.0,41900.0,0.22059749]
[1641772094541,0.0002108,41906.0,41902.0,0.32275795]
[1641772094741,0.03,41905.0,41903.0,0.003]
[1641772095143,0.03,41905.0,41903.0,0.062666]
[1641772095342,0.03,41905.0,41903.0,0.003]
[1641772095942,0.03,41905.0,41900.0,0.33993649]
[1641772096144,0.0002108,41906.0,41903.0,0.27055255]
[1641772096542,0.0002108,41906.0,41903.0,0.33022455]
[1641772096743,0.023,41906.0,41903.0,0.33222455]
[1641772097143,0.023,41906.0,41903.0,0.061672]
[1641772097989,0.00020689,41907.0,41903.0,0.059672]
[1641772098891,0.02720689,41907.0,41903.0,0.061672]
[1641772099086,0.02720689,41907.0,41905.0,0.30036382]
[1641772099487,0.02720689,41907.0,41903.0,0.061672]
[1641772100088,0.00020689,41907.0,41903.0,0.059672]
[1641772100489,0.00020689,41907.0,41903.0,0.38577561]
[1641772100891,0.02920689,41907.0,41903.0,0.38777561]
[1641772101091,0.02920697,41907.0,41903.0,0.38777561]
[1641772101738,0.08887797,41907.0,41903.0,0.061672]
[1641772102140,0.05987797,41907.0,41903.0,0.059672]
[1641772102337,0.11954981,41907.0,41903.0,0.059672]
[1641772102738,0.14454981,41907.0,41903.0,0.061672]
[1641772102938,0.08487796,41907.0,41903.0,0.061672]
[1641772104142,0.05987796,41907.0,41903.0,0.059672]
[1641772104741,0.08687796,41907.0,41903.0,0.061672]
[1641772106088,0.05987796,41907.0,41903.0,0.059672]
[1641772106793,0.08887796,41907.0,41903.0,0.062672]
[1641772107591,0.02920696,41907.0,41903.0,0.062672]
[1641772108096,0.00020696,41907.0,41903.0,0.059672]
[1641772108696,0.00020696,41907.0,41904.0,0.38653636]
[1641772108896,0.00041392,41907.0,41904.0,0.43653636]
[1641772109136,0.00020696,41907.0,41904.0,0.53653636]
[1641772109537,0.25,41914.0,41912.0,0.00022698]
[1641772109741,0.358885,41913.0,41912.0,0.2945217]
[1641772110137,0.25,41914.0,41912.0,0.2945217]
[1641772110838,0.25,41914.0,41912.0,0.2995217]
[1641772112037,0.25,41914.0,41912.0,0.2945217]
[1641772112239,0.25,41914.0,41911.0,0.4003663]
[1641772112440,0.25,41914.0,41911.0,0.159653]
[1641772112640,0.25,41914.0,41911.0,0.059653]
[1641772112893,0.25,41914.0,41911.0,0.006]
[1641772113286,0.358885,41913.0,41911.0,0.006]
[1641772113886,0.358885,41913.0,41911.0,0.065653]
[1641772114090,0.358885,41913.0,41911.0,0.059653]
[1641772114889,0.358885,41913.0,41911.0,0.065653]
[1641772115089,0.30987354,41914.0,41911.0,0.065653]
[1641772116091,0.23521418,41913.0,41911.0,0.059653]
[1641772116844,0.309661,41914.0,41911.0,0.004]
[1641772117047,0.25,41914.0,41911.0,0.004]
[1641772118047,0.25,41914.0,41911.0,0.059657]
[1641772118845,0.25,41914.0,41911.0,0.062657]
[1641772119045,0.245,41914.0,41911.0,0.062657]
[1641772120146,0.245,41914.0,41911.0,0.059657]
[1641772120591,0.245,41914.0,41913.0,0.32345732]
[1641772120792,0.55053057,41914.0,41913.0,0.32345732]
[1641772120992,0.245,41914.0,41911.0,0.063657]
[1641772121894,0.245,41914.0,41912.0,0.26142816]
[1641772122792,0.245,41914.0,41912.0,0.26442816]
[1641772123593,0.245,41914.0,41912.0,0.003]
[1641772124036,0.245,41914.0,41911.0,0.059657]
[1641772124840,0.264,41914.0,41911.0,0.064657]
[1641772125235,0.264,41914.0,41909.0,0.26939773]
[1641772126339,0.264,41914.0,41906.0,0.3075]
[1641772126340,0.30229863,41911.0,41906.0,0.3075]
[1641772126538,0.30229863,41911.0,41910.0,0.119309]
[1641772126739,0.30229863,41911.0,41907.0,0.059663]
[1641772126939,0.30229863,41911.0,41909.0,0.002]
[1641772127139,0.35229863,41911.0,41909.0,0.002]
[1641772127796,0.00020694,41912.0,41909.0,0.002]
[1641772127987,0.05987094,41912.0,41909.0,0.002]
[1641772128186,0.05987094,41912.0,41908.0,0.24055693]
[1641772128386,0.05987094,41912.0,41907.0,0.059663]
[1641772128788,0.059664,41912.0,41907.0,0.059663]
[1641772128987,0.33713072,41910.0,41907.0,0.059663]
[1641772129189,0.38713072,41910.0,41907.0,0.059663]
[1641772129589,0.29499532,41911.0,41907.0,0.059663]
[1641772129789,0.29520226,41911.0,41907.0,0.059663]
[1641772130392,0.00020694,41911.0,41907.0,0.059663]
[1641772130993,0.00020694,41911.0,41907.0,0.061663]
[1641772131539,0.00020694,41911.0,41907.0,0.060984]
[1641772131940,0.00041388,41911.0,41907.0,0.060984]
[1641772132139,0.00020694,41911.0,41907.0,0.058984]
[1641772132940,0.00020694,41911.0,41907.0,0.061984]
[1641772133142,0.00020694,41911.0,41910.0,0.29086044]
[1641772133841,0.00020694,41911.0,41910.0,0.571019]
[1641772134242,0.00020694,41913.0,41910.0,0.571019]
[1641772134440,0.00020694,41913.0,41910.0,0.630671]
[1641772134843,0.00020694,41913.0,41910.0,0.638671]
[1641772135291,0.24520694,41914.0,41910.0,0.638671]
[1641772136091,0.24520694,41914.0,41910.0,0.630671]
[1641772136492,0.24520693,41914.0,41910.0,0.630671]
[1641772137794,0.24520693,41914.0,41910.0,0.059652]
[1641772138198,0.30486793,41914.0,41908.0,0.119304]
[1641772139042,0.30486793,41914.0,41908.0,0.129304]
[1641772139637,0.00020694,41913.0,41908.0,0.129304]
[1641772139837,0.00020694,41913.0,41909.0,0.27051727]
[1641772140037,0.00020694,41913.0,41909.0,0.26051727]
[1641772140638,0.30424712,41914.0,41909.0,0.26051727]
[1641772140839,0.00920694,41913.0,41909.0,0.27251727]
[1641772141039,0.00920694,41913.0,41910.0,0.059658]
[1641772141442,0.00920694,41913.0,41912.0,0.27960236]
[1641772141943,0.009,41913.0,41912.0,0.27960236]
[1641772142792,0.009,41913.0,41912.0,0.13046896]
[1641772142990,0.016,41913.0,41912.0,0.13846896]
[1641772143690,0.016,41913.0,41912.0,0.79534518]
[1641772143888,0.016,41913.0,41912.0,1.18064718]
[1641772144089,0.24458612,41914.0,41912.0,1.27264718]
[1641772144287,0.24458612,41914.0,41912.0,0.609882]
[1641772144489,0.24458612,41914.0,41913.0,0.735302]
[1641772144688,0.24458612,41914.0,41913.0,0.835302]
[1641772145789,0.24458612,41914.0,41913.0,1.1352872]
[1641772146540,0.00021242,41916.0,41914.0,1.20212387]
[1641772146741,0.00021242,41916.0,41915.0,1.11882377]
[1641772147339,0.057032,41919.0,41915.0,1.11882377]
[1641772147340,0.00021043,41918.0,41915.0,1.11882377]
[1641772147543,0.00021043,41918.0,41915.0,0.73352177]
[1641772147740,0.00021043,41918.0,41915.0,0.95280677]
[1641772147943,0.00021043,41918.0,41916.0,0.45938291]
[1641772148148,0.00021043,41918.0,41917.0,1.22915583]
[1641772148342,0.00021043,41918.0,41917.0,1.61445783]
[1641772148541,0.00021043,41918.0,41917.0,1.71445783]
[1641772148940,0.0572386,41919.0,41917.0,1.72845783]
[1641772149142,0.0572386,41919.0,41918.0,1.17408938]
[1641772149443,0.0572386,41919.0,41918.0,1.17537251]
[1641772149641,0.057032,41919.0,41918.0,1.27537251]
[1641772150299,0.057032,41919.0,41918.0,0.67537251]
[1641772150706,0.057032,41919.0,41918.0,0.77537251]
[1641772150900,0.057032,41919.0,41918.0,0.78637251]
[1641772151502,0.057032,41919.0,41918.0,0.68637251]
[1641772151702,0.057032,41919.0,41918.0,0.30107051]
[1641772151901,0.057032,41919.0,41918.0,0.68637251]
[1641772152102,0.057032,41919.0,41918.0,0.67537251]
[1641772153005,0.052032,41919.0,41918.0,0.68937251]
[1641772153403,0.052032,41919.0,41918.0,0.78937251]
[1641772153903,0.052032,41919.0,41918.0,0.014]
[1641772154748,0.052032,41919.0,41916.0,0.059639]
[1641772154950,0.11168296,41919.0,41918.0,0.037]
[1641772155151,0.052032,41919.0,41918.0,0.037]
[1641772156152,0.05964654,41922.0,41916.0,0.059639]
[1641772156551,0.00020693,41921.0,41916.0,0.059639]
[1641772156950,0.00020693,41921.0,41916.0,0.103639]
[1641772157152,0.11931006,41920.0,41916.0,0.044]
[1641772157352,0.05,41919.0,41916.0,0.044]
[1641772157552,0.10986134,41921.0,41916.0,0.044]
[1641772157796,0.10965441,41921.0,41916.0,0.044]
[1641772158300,0.49609983,41921.0,41916.0,0.059652]
[1641772158498,0.16930441,41921.0,41916.0,0.059652]
[1641772158896,0.17530441,41921.0,41916.0,0.082652]
[1641772159596,0.43013995,41921.0,41916.0,0.082652]
[1641772159996,0.17530441,41921.0,41916.0,0.082652]
[1641772160198,0.16930441,41921.0,41916.0,0.059652]
[1641772160902,0.16930441,41921.0,41916.0,0.084652]
[1641772160903,0.17630441,41921.0,41916.0,0.084652]
[1641772161554,0.28346478,41917.0,41916.0,0.084652]
[1641772161747,0.34312078,41917.0,41916.0,0.025]
[1641772162246,0.34312078,41917.0,41915.0,0.00018729]
[1641772162448,0.28346478,41917.0,41915.0,0.00018729]
[1641772163049,0.35712078,41917.0,41915.0,0.004]
[1641772163248,0.29746478,41917.0,41915.0,0.004]
[1641772163453,0.014,41917.0,41915.0,0.063648]
[1641772164251,0.059653,41919.0,41915.0,0.059648]
[1641772164454,0.43952785,41919.0,41915.0,0.059648]
[1641772164650,0.05965292,41917.0,41915.0,0.059648]
[1641772165396,0.39287485,41919.0,41915.0,0.059648]
[1641772166295,0.37987485,41919.0,41915.0,0.05983527]
[1641772166496,0.05,41919.0,41915.0,0.05983527]
[1641772166996,0.124653,41919.0,41915.0,0.05983527]
[1641772168196,0.109653,41919.0,41915.0,0.05983527]
[1641772168398,0.30747296,41920.0,41915.0,0.05483527]
[1641772168601,0.05964934,41920.0,41916.0,0.25848142]
[1641772169045,0.08864934,41920.0,41916.0,0.25848142]
[1641772169447,0.08864934,41920.0,41917.0,0.26689206]
[1641772169644,0.029,41920.0,41917.0,0.26689206]
[1641772169844,0.029,41920.0,41918.0,0.059644]
[1641772170244,0.43065078,41923.0,41918.0,0.059644]
[1641772170446,0.10985127,41923.0,41918.0,0.059644]
[1641772170645,0.05020689,41923.0,41918.0,0.059644]
[1641772170843,0.00020689,41923.0,41919.0,0.2627817]
[1641772171045,0.04520689,41923.0,41919.0,0.3224227]
[1641772171448,0.78881456,41926.0,41920.0,0.86939413]
[1641772171745,0.46553502,41926.0,41920.0,0.31939413]
[1641772172349,0.46553502,41926.0,41910.0,1.12015527]
[1641772172350,0.32059462,41920.0,41910.0,1.12015527]
[1641772172549,0.0478,41919.0,41911.0,0.39975527]
[1641772172799,0.059663,41917.0,41911.0,0.39975527]
[1641772172999,0.107463,41917.0,41911.0,0.39975527]
[1641772173199,0.2498777,41914.0,41910.0,0.7624]
[1641772173399,0.05966112,41912.0,41910.0,0.7624]
[1641772173599,0.05966112,41912.0,41910.0,0.042]
[1641772174199,1.87408429,41925.0,41911.0,0.4]
[1641772174399,0.0478,41917.0,41911.0,0.4]
[1641772174799,0.119323,41914.0,41910.0,0.059662]
[1641772174999,0.119323,41914.0,41911.0,0.044]
[1641772175199,0.119323,41914.0,41912.0,0.00019471]
[1641772175500,0.05965985,41919.0,41917.0,0.0948774]
[1641772175702,0.358885,41918.0,41917.0,0.0948774]
[1641772175899,0.05966,41918.0,41917.0,0.0948774]
[1641772176303,0.72528838,41920.0,41917.0,0.0948774]
[1641772176304,0.31939413,41920.0,41917.0,0.36655455]
[1641772176546,0.31939413,41920.0,41917.0,0.65446357]
[1641772176950,0.31939413,41920.0,41917.0,0.65846357]
[1641772177846,0.31939413,41920.0,41918.0,0.059648]
[1641772184070,0.31939413,41920.0,41900.0,0.47046035]
[1641772184071,1.0,41904.0,41900.0,0.47046035]
[1641772184259,1.0,41904.0,41887.0,0.20082]
[1641772184260,1.0,41899.0,41887.0,0.20082]
[1641772184459,3.222085,41895.0,41894.0,0.38445191]
[1641772184656,3.77339999,41895.0,41889.0,0.38445191]
[1641772184857,0.5972,41890.0,41889.0,0.38445191]
[1641772185056,2.319885,41890.0,41889.0,0.38445191]
[1641772185257,2.47958915,41890.0,41889.0,0.38445191]
[1641772185462,2.47958915,41890.0,41881.0,0.004]
[1641772185463,0.17938632,41889.0,41881.0,0.004]
[1641772185657,1.5472,41883.0,41882.0,0.005]
[1641772185860,2.003885,41883.0,41882.0,0.005]
[1641772186057,1.0,41882.0,41877.0,1.01606515]
[1641772186259,1.0,41882.0,41877.0,0.00022]
[1641772186260,2.222085,41878.0,41877.0,0.00022]
[1641772186460,2.222085,41878.0,41876.0,0.00022]
[1641772186461,2.269885,41878.0,41876.0,0.00022]
[1641772186662,0.3601328,41876.0,41872.0,0.00022]
[1641772186858,2.269885,41875.0,41872.0,0.00022]
[1641772187057,2.369885,41875.0,41872.0,0.00022]
[1641772187459,2.419885,41875.0,41874.0,0.00011]
[1641772187659,2.42654701,41875.0,41872.0,0.00041098]
[1641772187901,1.956085,41873.0,41872.0,0.00041098]
[1641772188101,1.956085,41873.0,41869.0,0.00022]
[1641772188102,2.263885,41873.0,41869.0,0.00022]
[1641772188301,0.956085,41871.0,41869.0,0.00022]
[1641772188503,2.269885,41870.0,41869.0,0.00022]
[1641772188803,2.269885,41870.0,41860.0,0.00011]
[1641772188804,0.41985551,41867.0,41860.0,0.00011]
[1641772189004,2.3419649,41866.0,41860.0,0.00011]
[1641772189207,2.3919649,41866.0,41860.0,0.00011]
[1641772189403,2.4919649,41866.0,41860.0,0.00011]
[1641772189602,2.4869649,41866.0,41860.0,0.00011]
[1641772190005,1.003885,41866.0,41860.0,0.00011]
[1641772190206,1.003885,41866.0,41865.0,0.99112]
[1641772190404,0.0478,41866.0,41861.0,0.123677]
[1641772190802,0.0478,41866.0,41862.0,0.29761038]
[1641772191003,0.0478,41866.0,41865.0,1.97728961]
[1641772191204,0.0478,41866.0,41865.0,1.32728961]
[1641772192456,0.0478,41866.0,41865.0,0.74693708]
[1641772192656,0.0478,41866.0,41865.0,0.42254258]
[1641772193258,0.00021051,41868.0,41864.0,0.27575743]
[1641772193859,0.00021051,41868.0,41865.0,0.64020829]
[1641772194462,0.00021051,41868.0,41866.0,0.27179939]
[1641772195058,0.00021051,41868.0,41865.0,0.069726]
[1641772195496,0.00021051,41869.0,41865.0,0.069726]
[1641772195896,0.00021051,41869.0,41866.0,0.26988947]
[1641772196296,0.00021051,41869.0,41867.0,0.65639918]
[1641772196498,0.00020678,41870.0,41867.0,0.65639918]
[1641772196696,0.00020678,41870.0,41868.0,0.059722]
[1641772196898,0.00020678,41870.0,41868.0,0.054722]
[1641772197099,0.00320678,41870.0,41868.0,0.054722]
[1641772197698,0.003,41870.0,41868.0,0.054722]
[1641772198200,0.00020693,41871.0,41868.0,0.054722]
[1641772198601,0.00020693,41871.0,41869.0,0.26381695]
[1641772198803,0.00020693,41872.0,41869.0,0.26381695]
[1641772199066,0.006,41871.0,41869.0,0.26381695]
[1641772199264,0.006,41871.0,41870.0,1.385302]
[1641772199464,0.006,41871.0,41870.0,1.533102]
[1641772199666,0.006,41871.0,41870.0,1.0478]
[1641772199864,0.006,41871.0,41870.0,1.33788454]
[1641772200267,0.00020692,41873.0,41870.0,1.33788454]
[1641772200464,0.00020692,41873.0,41870.0,1.10752]
[1641772200969,0.00020713,41874.0,41870.0,0.0478]
[1641772201169,0.00020713,41874.0,41867.0,1.46517705]
[1641772201364,0.00020713,41874.0,41867.0,1.39099918]
[1641772201866,0.00020713,41874.0,41869.0,0.059723]
[1641772202272,0.00136012,41880.0,41869.0,0.059723]
[1641772202273,0.00020713,41873.0,41869.0,0.059723]
[1641772202901,0.00020713,41873.0,41867.0,1.39099918]
[1641772203099,0.00320713,41873.0,41867.0,1.39099918]
[1641772203301,0.00320443,41873.0,41867.0,1.39099918]
[1641772203498,0.00320443,41873.0,41869.0,0.059718]
[1641772203900,0.00320443,41873.0,41872.0,0.79724845]
[1641772204301,0.00020443,41873.0,41869.0,0.059718]
[1641772205302,0.00020443,41873.0,41870.0,0.48656586]
[1641772205504,0.00020443,41873.0,41871.0,0.39798234]
[1641772205505,0.00020437,41873.0,41871.0,0.39798234]
[1641772205803,0.00120103,41887.0,41878.0,0.059694]
[1641772206003,0.12938632,41889.0,41879.0,0.0478]
[1641772206204,0.12938632,41889.0,41882.0,0.32971504]
[1641772206406,0.12938632,41889.0,41888.0,0.36648966]
[1641772206853,0.12938632,41889.0,41888.0,0.0478]
[1641772207054,0.12938632,41889.0,41884.0,0.0478]
[1641772207055,1.05427518,41888.0,41884.0,0.0478]
[1641772207255,0.358885,41884.0,41868.0,1.70574257]
[1641772207458,0.119437,41877.0,41865.0,0.01]
[1641772207655,0.70605596,41876.0,41865.0,0.01]
[1641772207853,0.00124732,41871.0,41865.0,0.01]
[1641772208052,0.358885,41867.0,41865.0,0.01]
[1641772208252,0.0478,41866.0,41865.0,0.01]
[1641772208451,0.0478,41866.0,41865.0,0.25901477]
[1641772208652,0.0478,41866.0,41865.0,0.42446272]
[1641772208952,0.0478,41866.0,41865.0,0.01]
[1641772209652,0.0478,41866.0,41865.0,0.33264471]